[Event "Early-Titled-Tuesday-Blitz-July-09-2024"]
[Site "Chess.com"]
[Date "2024.07.09"]
[Round "8"]
[White "FormerProdigy"]
[Black "Crazy_girl99"]
[Result "0-1"]
[WhiteElo "2950"]
[BlackElo "2652"]
[TimeControl "180+1"]
[EndTime "9:29:58 PDT"]
[Termination "Crazy_girl99 won on time"]

1. e4 {[%clk 0:03:00.9]} 1... e5 {[%clk 0:02:59.4]} 2. Nf3 {[%clk 0:03:01.1]}
2... Nc6 {[%clk 0:02:59.5]} 3. g3 {[%clk 0:03:00.3]} 3... g6 {[%clk 0:02:58]} 4.
d4 {[%clk 0:02:50.4]} 4... exd4 {[%clk 0:02:56.7]} 5. Nxd4 {[%clk 0:02:51.3]}
5... Bg7 {[%clk 0:02:57.1]} 6. c3 {[%clk 0:02:48.2]} 6... Nge7 {[%clk
0:02:56.9]} 7. Bg2 {[%clk 0:02:47.8]} 7... O-O {[%clk 0:02:56.8]} 8. O-O {[%clk
0:02:46.4]} 8... d6 {[%clk 0:02:57.1]} 9. Re1 {[%clk 0:02:37.5]} 9... h6 {[%clk
0:02:56.4]} 10. Be3 {[%clk 0:02:36.6]} 10... Kh7 {[%clk 0:02:55.9]} 11. Nd2
{[%clk 0:02:32.2]} 11... Ne5 {[%clk 0:02:55]} 12. N2f3 {[%clk 0:02:23.1]} 12...
a6 {[%clk 0:02:52.7]} 13. Qc2 {[%clk 0:02:18.4]} 13... c5 {[%clk 0:02:51.8]} 14.
Ne2 {[%clk 0:02:04]} 14... Nc4 {[%clk 0:02:51.3]} 15. Bc1 {[%clk 0:01:57.7]}
15... d5 {[%clk 0:02:49]} 16. Nf4 {[%clk 0:01:45.8]} 16... Re8 {[%clk
0:02:34.1]} 17. exd5 {[%clk 0:01:37.1]} 17... Bf5 {[%clk 0:02:33.6]} 18. Qd1
{[%clk 0:01:37.7]} 18... Qd7 {[%clk 0:02:17]} 19. h3 {[%clk 0:01:32.5]} 19...
Qd6 {[%clk 0:02:10.3]} 20. g4 {[%clk 0:01:19.2]} 20... Bd7 {[%clk 0:02:09.5]}
21. Rb1 {[%clk 0:01:17.5]} 21... Nb6 {[%clk 0:02:06.7]} 22. Re3 {[%clk
0:00:41.3]} 22... c4 {[%clk 0:01:55.4]} 23. b3 {[%clk 0:00:40.1]} 23... Rac8
{[%clk 0:01:48.3]} 24. bxc4 {[%clk 0:00:24.1]} 24... Nxc4 {[%clk 0:01:49.2]} 25.
Rd3 {[%clk 0:00:19.6]} 25... b5 {[%clk 0:01:46.2]} 26. Nd4 {[%clk 0:00:19.7]}
26... Be5 {[%clk 0:01:40]} 27. Nfe2 {[%clk 0:00:13.3]} 27... Ng8 {[%clk
0:01:35.5]} 28. Nf3 {[%clk 0:00:13]} 28... Bg7 {[%clk 0:01:33.7]} 29. Bf4 {[%clk
0:00:13.5]} 29... Qe7 {[%clk 0:01:30.7]} 30. Ned4 {[%clk 0:00:13]} 30... Nf6
{[%clk 0:01:28.5]} 31. Qf1 {[%clk 0:00:11.6]} 31... Ne4 {[%clk 0:01:27.4]} 32.
Re1 {[%clk 0:00:11.7]} 32... Qa3 {[%clk 0:01:14.5]} 33. Ne6 {[%clk 0:00:11.8]}
33... fxe6 {[%clk 0:00:59.1]} 34. Rxe4 {[%clk 0:00:12.1]} 34... exd5 {[%clk
0:00:59.3]} 35. Rxe8 {[%clk 0:00:13]} 35... Rxe8 {[%clk 0:00:57.7]} 36. Rxd5
{[%clk 0:00:13.9]} 36... Bc6 {[%clk 0:00:58.1]} 37. Rd3 {[%clk 0:00:11]} 37...
Qxa2 {[%clk 0:00:53.2]} 38. Ng5+ {[%clk 0:00:11.4]} 38... hxg5 {[%clk 0:00:53]}
39. Bxc6 {[%clk 0:00:12.3]} 39... Re2 {[%clk 0:00:30.2]} 40. Bxg5 {[%clk
0:00:11.1]} 40... Rb2 {[%clk 0:00:25.2]} 41. Rd1 {[%clk 0:00:04.4]} 41... Ne5
{[%clk 0:00:21.6]} 42. Be4 {[%clk 0:00:04.1]} 42... Qa4 {[%clk 0:00:21.1]} 43.
Qe1 {[%clk 0:00:02.4]} 43... Qc4 {[%clk 0:00:20.1]} 44. f4 {[%clk 0:00:02.1]}
44... Re2 {[%clk 0:00:20.1]} 45. Bxg6+ {[%clk 0:00:01.7]} 45... Nxg6 {[%clk
0:00:20.1]} 46. Qf1 {[%clk 0:00:01.3]} 46... Qc5+ {[%clk 0:00:20.1]} 47. Kh1
{[%clk 0:00:01.8]} 47... Qc6+ {[%clk 0:00:15.1]} 48. Kg1 {[%clk 0:00:02]} 48...
Qe4 {[%clk 0:00:15.6]} 0-1

[Event "Early-Titled-Tuesday-Blitz-July-09-2024"]
[Site "Chess.com"]
[Date "2024.07.09"]
[Round "8"]
[White "Austen48"]
[Black "SuperGPatzer"]
[Result "1-0"]
[WhiteElo "2276"]
[BlackElo "2135"]
[TimeControl "180+1"]
[EndTime "9:30:04 PDT"]
[Termination "Austen48 won by resignation"]

1. d4 {[%clk 0:03:00.9]} 1... c5 {[%clk 0:02:59.7]} 2. d5 {[%clk 0:02:58.3]}
2... h6 {[%clk 0:02:59]} 3. e4 {[%clk 0:02:56.9]} 3... d6 {[%clk 0:02:59]} 4. c4
{[%clk 0:02:54.8]} 4... g5 {[%clk 0:02:57.5]} 5. h4 {[%clk 0:02:53.3]} 5... g4
{[%clk 0:02:57.5]} 6. Ne2 {[%clk 0:02:50.1]} 6... Bg7 {[%clk 0:02:57.1]} 7. Ng3
{[%clk 0:02:50]} 7... h5 {[%clk 0:02:57.6]} 8. Be2 {[%clk 0:02:44.7]} 8... Be5
{[%clk 0:02:56.7]} 9. Nf5 {[%clk 0:02:22.3]} 9... Nf6 {[%clk 0:02:48.2]} 10. f4
{[%clk 0:02:06.5]} 10... gxf3 {[%clk 0:02:44.1]} 11. Bxf3 {[%clk 0:02:00.3]}
11... Bxf5 {[%clk 0:02:43.3]} 12. exf5 {[%clk 0:01:59]} 12... Bg3+ {[%clk
0:02:42.4]} 13. Kf1 {[%clk 0:01:56.3]} 13... Qd7 {[%clk 0:02:39.2]} 14. Qd3
{[%clk 0:01:53.1]} 14... Na6 {[%clk 0:02:13.8]} 15. a3 {[%clk 0:01:51.3]} 15...
O-O-O {[%clk 0:02:10.2]} 16. Nc3 {[%clk 0:01:51]} 16... Rdg8 {[%clk 0:01:58.4]}
17. Bd2 {[%clk 0:01:48.5]} 17... Nc7 {[%clk 0:01:58.1]} 18. Nb5 {[%clk
0:01:42.4]} 18... Nxb5 {[%clk 0:01:36.6]} 19. cxb5 {[%clk 0:01:41.6]} 19... Be5
{[%clk 0:01:37.3]} 20. Rb1 {[%clk 0:01:34.9]} 20... Ng4 {[%clk 0:01:26.6]} 21.
Ke1 {[%clk 0:01:18.2]} 21... Bg3+ {[%clk 0:01:19.5]} 22. Ke2 {[%clk 0:01:17.5]}
22... Nf2 {[%clk 0:01:19.2]} 23. Qc2 {[%clk 0:01:12.9]} 23... Nxh1 {[%clk
0:01:16.6]} 24. Rxh1 {[%clk 0:01:13.5]} 24... e6 {[%clk 0:01:16.6]} 25. fxe6
{[%clk 0:01:11.6]} 25... fxe6 {[%clk 0:01:15.9]} 26. dxe6 {[%clk 0:01:10.3]}
26... Qxe6+ {[%clk 0:01:15.6]} 27. Kd1 {[%clk 0:01:10.9]} 27... Re8 {[%clk
0:01:06.5]} 28. Qd3 {[%clk 0:01:10.7]} 28... Qa2 {[%clk 0:00:54.4]} 29. Kc2
{[%clk 0:01:06.8]} 29... c4 {[%clk 0:00:53.5]} 30. Qd5 {[%clk 0:00:54.2]} 30...
Qb3+ {[%clk 0:00:52.6]} 31. Kb1 {[%clk 0:00:52.1]} 31... Qd3+ {[%clk 0:00:51.5]}
32. Qxd3 {[%clk 0:00:52.3]} 32... cxd3 {[%clk 0:00:52.4]} 33. Rc1+ {[%clk
0:00:50.7]} 33... Kb8 {[%clk 0:00:51.3]} 34. Rc3 {[%clk 0:00:43.5]} 34... Be1
{[%clk 0:00:33.4]} 35. Rxd3 {[%clk 0:00:39.4]} 35... Bxd2 {[%clk 0:00:34]} 36.
Rxd2 {[%clk 0:00:40]} 36... Kc7 {[%clk 0:00:33.3]} 37. Rd5 {[%clk 0:00:37.6]}
37... Re5 {[%clk 0:00:32.2]} 38. Rxe5 {[%clk 0:00:20.2]} 38... dxe5 {[%clk
0:00:31.8]} 39. Kc2 {[%clk 0:00:20.9]} 39... b6 {[%clk 0:00:31.2]} 40. Kd3
{[%clk 0:00:21.3]} 40... Kd6 {[%clk 0:00:30.3]} 41. Ke4 {[%clk 0:00:21.1]} 41...
Kc5 {[%clk 0:00:28.5]} 42. a4 {[%clk 0:00:20.4]} 42... Rd8 {[%clk 0:00:22]} 43.
Kxe5 {[%clk 0:00:19.9]} 43... Rd2 {[%clk 0:00:21]} 44. b3 {[%clk 0:00:19.2]}
44... Rd3 {[%clk 0:00:19.9]} 45. Kf4 {[%clk 0:00:16.7]} 45... Rxb3 {[%clk
0:00:19.8]} 46. Bxh5 {[%clk 0:00:17.4]} 46... Rb4+ {[%clk 0:00:19.2]} 47. Kg5
{[%clk 0:00:16.3]} 47... Rxa4 {[%clk 0:00:19.5]} 48. g4 {[%clk 0:00:16.2]} 48...
Kxb5 {[%clk 0:00:19.8]} 49. Be8+ {[%clk 0:00:16.2]} 49... Kb4 {[%clk 0:00:19.9]}
50. Bxa4 {[%clk 0:00:16.1]} 50... Kxa4 {[%clk 0:00:20.8]} 51. h5 {[%clk
0:00:15.1]} 51... b5 {[%clk 0:00:21.2]} 52. h6 {[%clk 0:00:15.8]} 52... b4
{[%clk 0:00:22]} 53. h7 {[%clk 0:00:16.3]} 53... b3 {[%clk 0:00:22.9]} 54. h8=Q
{[%clk 0:00:15.9]} 54... b2 {[%clk 0:00:23.8]} 55. Qe8+ {[%clk 0:00:15.6]} 55...
Ka3 {[%clk 0:00:23.5]} 56. Qe7+ {[%clk 0:00:15.1]} 56... Ka2 {[%clk 0:00:23.3]}
57. Qxa7+ {[%clk 0:00:15.1]} 57... Kb1 {[%clk 0:00:24.2]} 58. Kf6 {[%clk
0:00:14.7]} 58... Kc2 {[%clk 0:00:25.1]} 59. Qc7+ {[%clk 0:00:14.3]} 59... Kd2
{[%clk 0:00:25]} 60. Qd6+ {[%clk 0:00:14.6]} 60... Kc2 {[%clk 0:00:25.2]} 61.
Qc5+ {[%clk 0:00:14.9]} 61... Kd2 {[%clk 0:00:25.5]} 62. Qd4+ {[%clk 0:00:14.9]}
62... Kc2 {[%clk 0:00:26.4]} 63. Qc4+ {[%clk 0:00:15.1]} 1-0

[Event "Early-Titled-Tuesday-Blitz-July-09-2024"]
[Site "Chess.com"]
[Date "2024.07.09"]
[Round "8"]
[White "nrvisakh"]
[Black "Andrey_Klymchuk"]
[Result "1-0"]
[WhiteElo "2934"]
[BlackElo "2763"]
[TimeControl "180+1"]
[EndTime "9:30:08 PDT"]
[Termination "nrvisakh won by resignation"]

1. d4 {[%clk 0:03:00.9]} 1... Nf6 {[%clk 0:02:59.4]} 2. Bg5 {[%clk 0:03:00.8]}
2... c5 {[%clk 0:02:56.7]} 3. d5 {[%clk 0:03:00]} 3... Qb6 {[%clk 0:02:56.8]} 4.
Nc3 {[%clk 0:02:59.6]} 4... d6 {[%clk 0:02:53.9]} 5. e4 {[%clk 0:02:57.8]} 5...
g6 {[%clk 0:02:53.9]} 6. Bb5+ {[%clk 0:02:52.9]} 6... Bd7 {[%clk 0:02:52.4]} 7.
a4 {[%clk 0:02:52.3]} 7... Bg7 {[%clk 0:02:50.5]} 8. Nge2 {[%clk 0:02:48.9]}
8... O-O {[%clk 0:02:49.9]} 9. a5 {[%clk 0:02:48.2]} 9... Qc7 {[%clk 0:02:49.4]}
10. Bxd7 {[%clk 0:02:46.6]} 10... Nbxd7 {[%clk 0:02:48.8]} 11. O-O {[%clk
0:02:45.5]} 11... a6 {[%clk 0:02:44.8]} 12. Qc1 {[%clk 0:02:44.8]} 12... Rfe8
{[%clk 0:02:43.7]} 13. Bh6 {[%clk 0:02:44.6]} 13... Bh8 {[%clk 0:02:43.3]} 14.
Re1 {[%clk 0:02:44.6]} 14... c4 {[%clk 0:02:35]} 15. Ra4 {[%clk 0:02:38.5]}
15... b5 {[%clk 0:02:29.5]} 16. axb6 {[%clk 0:02:37.3]} 16... Nxb6 {[%clk
0:02:30.4]} 17. Ra2 {[%clk 0:02:34.4]} 17... Reb8 {[%clk 0:02:24.5]} 18. Be3
{[%clk 0:02:32.4]} 18... Ng4 {[%clk 0:02:22.7]} 19. Bd4 {[%clk 0:02:30.5]} 19...
Nf6 {[%clk 0:02:10.7]} 20. Qd2 {[%clk 0:02:19.2]} 20... Nbd7 {[%clk 0:02:08.4]}
21. Rea1 {[%clk 0:02:11.7]} 21... Bg7 {[%clk 0:02:05.6]} 22. f3 {[%clk 0:02:09]}
22... h5 {[%clk 0:02:04.9]} 23. Ng3 {[%clk 0:02:00.6]} 23... Kh7 {[%clk
0:02:01.4]} 24. Nf1 {[%clk 0:02:00.2]} 24... Bh6 {[%clk 0:01:57.4]} 25. Be3
{[%clk 0:02:00.3]} 25... Bg7 {[%clk 0:01:51.9]} 26. Bd4 {[%clk 0:02:00.3]} 26...
Bh6 {[%clk 0:01:50.7]} 27. Qe2 {[%clk 0:02:00.5]} 27... Rb7 {[%clk 0:01:44.6]}
28. Nd1 {[%clk 0:01:54.8]} 28... h4 {[%clk 0:01:38]} 29. Ra4 {[%clk 0:01:53.3]}
29... Rc8 {[%clk 0:01:31.3]} 30. Rxa6 {[%clk 0:01:52.3]} 30... h3 {[%clk
0:01:29.6]} 31. Rc6 {[%clk 0:01:28.1]} 31... Qb8 {[%clk 0:01:29.2]} 32. Qxc4
{[%clk 0:01:28.1]} 32... Rbc7 {[%clk 0:01:27.9]} 33. g3 {[%clk 0:01:24.8]} 33...
e6 {[%clk 0:01:22.2]} 34. c3 {[%clk 0:01:14.1]} 34... Ne5 {[%clk 0:01:03.4]} 35.
Bxe5 {[%clk 0:01:10]} 35... dxe5 {[%clk 0:01:04.3]} 36. Raa6 {[%clk 0:00:57.8]}
36... exd5 {[%clk 0:01:03]} 37. exd5 {[%clk 0:00:57.6]} 37... e4 {[%clk
0:00:58.4]} 38. fxe4 {[%clk 0:00:43.9]} 38... Ng4 {[%clk 0:00:54.8]} 39. Qe2
{[%clk 0:00:35.9]} 39... Rxc6 {[%clk 0:00:53.2]} 40. Rxc6 {[%clk 0:00:35.6]}
40... Rxc6 {[%clk 0:00:42.8]} 41. dxc6 {[%clk 0:00:35.7]} 41... Qb6+ {[%clk
0:00:41.5]} 42. Nf2 {[%clk 0:00:35.4]} 42... Ne5 {[%clk 0:00:38.9]} 43. c7
{[%clk 0:00:33.5]} 43... Qxc7 {[%clk 0:00:37.8]} 44. Nxh3 {[%clk 0:00:33.8]}
44... Qc5+ {[%clk 0:00:35.7]} 45. Nf2 {[%clk 0:00:33.3]} 45... Qa7 {[%clk
0:00:32.4]} 46. Kg2 {[%clk 0:00:33]} 46... Qb7 {[%clk 0:00:30.6]} 47. h4 {[%clk
0:00:26.6]} 47... Qc6 {[%clk 0:00:29.4]} 48. Ne3 {[%clk 0:00:23.7]} 48... f5
{[%clk 0:00:27]} 49. Nd5 {[%clk 0:00:23.6]} 49... Qb7 {[%clk 0:00:25.4]} 50. b4
{[%clk 0:00:21.4]} 50... Qa8 {[%clk 0:00:24.8]} 51. h5 {[%clk 0:00:16.9]} 51...
gxh5 {[%clk 0:00:20.3]} 52. Qxh5 {[%clk 0:00:16.1]} 52... fxe4 {[%clk
0:00:17.1]} 53. Qf5+ {[%clk 0:00:15.8]} 53... Kg7 {[%clk 0:00:16.8]} 54. Qxe5+
{[%clk 0:00:15.9]} 1-0

[Event "Early-Titled-Tuesday-Blitz-July-09-2024"]
[Site "Chess.com"]
[Date "2024.07.09"]
[Round "8"]
[White "Rile-Man"]
[Black "wild3000"]
[Result "1/2-1/2"]
[WhiteElo "2651"]
[BlackElo "2477"]
[TimeControl "180+1"]
[EndTime "9:30:10 PDT"]
[Termination "Game drawn by repetition"]

1. d4 {[%clk 0:03:00.9]} 1... Nf6 {[%clk 0:02:58.7]} 2. Bf4 {[%clk 0:03:01.2]}
2... b6 {[%clk 0:02:57.3]} 3. e3 {[%clk 0:02:56.5]} 3... Bb7 {[%clk 0:02:57]} 4.
Nf3 {[%clk 0:02:56.2]} 4... e6 {[%clk 0:02:57.2]} 5. Nbd2 {[%clk 0:02:54.7]}
5... Nh5 {[%clk 0:02:45.8]} 6. Bg5 {[%clk 0:02:51.3]} 6... Be7 {[%clk
0:02:45.4]} 7. Bxe7 {[%clk 0:02:50.4]} 7... Qxe7 {[%clk 0:02:45.2]} 8. c3 {[%clk
0:02:45.9]} 8... O-O {[%clk 0:02:43.7]} 9. Bd3 {[%clk 0:02:40.9]} 9... d6 {[%clk
0:02:30.7]} 10. Qe2 {[%clk 0:02:39.9]} 10... c5 {[%clk 0:02:26.5]} 11. h4 {[%clk
0:02:27.4]} 11... cxd4 {[%clk 0:02:20.8]} 12. cxd4 {[%clk 0:02:25.6]} 12... Nc6
{[%clk 0:02:18.2]} 13. a3 {[%clk 0:01:57.5]} 13... Rac8 {[%clk 0:02:00.7]} 14.
O-O {[%clk 0:01:42.8]} 14... g6 {[%clk 0:01:48.3]} 15. Rac1 {[%clk 0:01:39.5]}
15... e5 {[%clk 0:01:38.5]} 16. d5 {[%clk 0:01:34.7]} 16... Nb8 {[%clk
0:01:38.5]} 17. Bc4 {[%clk 0:01:23.1]} 17... f5 {[%clk 0:01:36.2]} 18. Ng5
{[%clk 0:01:21.7]} 18... Ng7 {[%clk 0:01:32.2]} 19. g3 {[%clk 0:01:17.7]} 19...
Nd7 {[%clk 0:01:31.5]} 20. e4 {[%clk 0:01:11.2]} 20... f4 {[%clk 0:01:26.8]} 21.
Ba6 {[%clk 0:00:52.8]} 21... Nc5 {[%clk 0:01:20.1]} 22. Bxb7 {[%clk 0:00:49.9]}
22... Qxb7 {[%clk 0:01:21]} 23. b4 {[%clk 0:00:48.8]} 23... Na4 {[%clk
0:01:16.6]} 24. Nc4 {[%clk 0:00:46.7]} 24... Qd7 {[%clk 0:01:12.8]} 25. Qd3
{[%clk 0:00:41.1]} 25... b5 {[%clk 0:01:10.4]} 26. Nd2 {[%clk 0:00:40.7]} 26...
h6 {[%clk 0:01:04.7]} 27. Ngf3 {[%clk 0:00:31.6]} 27... Nh5 {[%clk 0:01:00.4]}
28. Kh2 {[%clk 0:00:30.4]} 28... a6 {[%clk 0:00:56.4]} 29. Ng1 {[%clk
0:00:23.9]} 29... fxg3+ {[%clk 0:00:51.5]} 30. fxg3 {[%clk 0:00:24.8]} 30... Qg4
{[%clk 0:00:51.6]} 31. Rxf8+ {[%clk 0:00:19.9]} 31... Rxf8 {[%clk 0:00:50.2]}
32. Nh3 {[%clk 0:00:18.5]} 32... Nb6 {[%clk 0:00:39.3]} 33. Rf1 {[%clk
0:00:18.1]} 33... Rxf1 {[%clk 0:00:36.3]} 34. Nxf1 {[%clk 0:00:19]} 34... Nc4
{[%clk 0:00:35.4]} 35. Nf2 {[%clk 0:00:19.3]} 35... Qd7 {[%clk 0:00:31.5]} 36.
Ne3 {[%clk 0:00:19]} 36... Nxe3 {[%clk 0:00:29]} 37. Qxe3 {[%clk 0:00:19.9]}
37... Kg7 {[%clk 0:00:26.5]} 38. Qf3 {[%clk 0:00:20]} 38... Nf6 {[%clk 0:00:26]}
39. Kg2 {[%clk 0:00:19.1]} 39... Qc7 {[%clk 0:00:24.2]} 40. g4 {[%clk
0:00:18.6]} 40... Qc2 {[%clk 0:00:20.5]} 41. Kg3 {[%clk 0:00:17.9]} 41... Qd2
{[%clk 0:00:17]} 42. Nh3 {[%clk 0:00:18.1]} 42... h5 {[%clk 0:00:16.3]} 43. Ng5
{[%clk 0:00:08.8]} 43... hxg4 {[%clk 0:00:14.9]} 44. Ne6+ {[%clk 0:00:09.1]}
44... Kf7 {[%clk 0:00:14.6]} 45. Nd8+ {[%clk 0:00:03.7]} 45... Ke7 {[%clk
0:00:14.4]} 46. Nc6+ {[%clk 0:00:03.9]} 46... Kf7 {[%clk 0:00:14.5]} 47. Nd8+
{[%clk 0:00:04]} 47... Kg7 {[%clk 0:00:11.7]} 48. Ne6+ {[%clk 0:00:04]} 48...
Kf7 {[%clk 0:00:06.8]} 49. Nd8+ {[%clk 0:00:04]} 1/2-1/2

[Event "Early-Titled-Tuesday-Blitz-July-09-2024"]
[Site "Chess.com"]
[Date "2024.07.09"]
[Round "8"]
[White "Hirna2005"]
[Black "NM_Antelacus"]
[Result "1-0"]
[WhiteElo "2411"]
[BlackElo "2282"]
[TimeControl "180+1"]
[EndTime "9:30:11 PDT"]
[Termination "Hirna2005 won on time"]

1. e4 {[%clk 0:03:00.9]} 1... c5 {[%clk 0:02:59.7]} 2. Nf3 {[%clk 0:02:59.5]}
2... Nc6 {[%clk 0:02:59.7]} 3. c3 {[%clk 0:02:59.2]} 3... d5 {[%clk 0:02:58.7]}
4. exd5 {[%clk 0:02:59.1]} 4... Qxd5 {[%clk 0:02:59.6]} 5. Na3 {[%clk 0:02:59]}
5... Nf6 {[%clk 0:02:51.8]} 6. d4 {[%clk 0:02:58.2]} 6... cxd4 {[%clk
0:02:48.3]} 7. Bc4 {[%clk 0:02:58.1]} 7... Qe4+ {[%clk 0:02:40]} 8. Be3 {[%clk
0:02:58.1]} 8... e6 {[%clk 0:02:22.7]} 9. cxd4 {[%clk 0:02:57.6]} 9... Bb4+
{[%clk 0:02:20.4]} 10. Ke2 {[%clk 0:02:55]} 10... O-O {[%clk 0:02:11.7]} 11. Nc2
{[%clk 0:02:52.1]} 11... Be7 {[%clk 0:02:07.8]} 12. Re1 {[%clk 0:02:47.3]} 12...
Rd8 {[%clk 0:01:59]} 13. Kf1 {[%clk 0:02:34]} 13... Qg4 {[%clk 0:01:56.7]} 14.
h3 {[%clk 0:02:29.9]} 14... Qh5 {[%clk 0:01:56.1]} 15. Ne5 {[%clk 0:02:16.3]}
15... Qxd1 {[%clk 0:01:52.4]} 16. Raxd1 {[%clk 0:02:15.8]} 16... Bd7 {[%clk
0:01:42.3]} 17. Nxd7 {[%clk 0:02:07.7]} 17... Rxd7 {[%clk 0:01:42.2]} 18. a3
{[%clk 0:02:05.3]} 18... Rc8 {[%clk 0:01:39.3]} 19. Bd3 {[%clk 0:01:59.9]} 19...
Nd5 {[%clk 0:01:36.9]} 20. Bc1 {[%clk 0:01:56.3]} 20... Na5 {[%clk 0:01:33.9]}
21. Bb5 {[%clk 0:01:51.3]} 21... Rdd8 {[%clk 0:01:33.1]} 22. Ne3 {[%clk
0:01:49.8]} 22... a6 {[%clk 0:01:27.4]} 23. Nxd5 {[%clk 0:01:44.4]} 23... Rxd5
{[%clk 0:01:24.9]} 24. Be2 {[%clk 0:01:43.3]} 24... Nc4 {[%clk 0:01:22.2]} 25.
Bf3 {[%clk 0:01:37]} 25... Rd7 {[%clk 0:01:21.7]} 26. d5 {[%clk 0:01:34.9]}
26... exd5 {[%clk 0:01:20.2]} 27. Bxd5 {[%clk 0:01:24.9]} 27... Nb6 {[%clk
0:01:13.7]} 28. Be4 {[%clk 0:01:08.1]} 28... Rxd1 {[%clk 0:01:04.5]} 29. Rxd1
{[%clk 0:01:08]} 29... Rc7 {[%clk 0:01:01.2]} 30. Bf4 {[%clk 0:00:57.2]} 30...
Rc4 {[%clk 0:00:57.3]} 31. Re1 {[%clk 0:00:43.5]} 31... Bf6 {[%clk 0:00:54.5]}
32. Bc1 {[%clk 0:00:39.2]} 32... g6 {[%clk 0:00:40]} 33. Bxb7 {[%clk 0:00:36.7]}
33... Kg7 {[%clk 0:00:30.8]} 34. Bxa6 {[%clk 0:00:35.5]} 34... Rc6 {[%clk
0:00:29.7]} 35. Bb5 {[%clk 0:00:34.8]} 35... Rc5 {[%clk 0:00:28.5]} 36. a4
{[%clk 0:00:33.5]} 36... Nd5 {[%clk 0:00:25.9]} 37. Rd1 {[%clk 0:00:24.9]} 37...
Nb4 {[%clk 0:00:24.1]} 38. Bd2 {[%clk 0:00:21.1]} 38... Nd5 {[%clk 0:00:18]} 39.
b4 {[%clk 0:00:20.1]} 39... Rc2 {[%clk 0:00:17.9]} 40. Be1 {[%clk 0:00:18.5]}
40... Nc3 {[%clk 0:00:14.8]} 41. Bxc3 {[%clk 0:00:13.1]} 41... Bxc3 {[%clk
0:00:13.7]} 42. Rb1 {[%clk 0:00:13.3]} 42... Bd4 {[%clk 0:00:12.9]} 43. Be2
{[%clk 0:00:13.2]} 43... Kf6 {[%clk 0:00:09.1]} 44. a5 {[%clk 0:00:13.5]} 44...
Ke5 {[%clk 0:00:08.2]} 45. b5 {[%clk 0:00:13.9]} 45... Kd6 {[%clk 0:00:07.3]}
46. b6 {[%clk 0:00:13.8]} 46... Rb2 {[%clk 0:00:05.8]} 47. Rxb2 {[%clk
0:00:11.9]} 47... Bxb2 {[%clk 0:00:05.7]} 48. Bc4 {[%clk 0:00:12]} 48... f6
{[%clk 0:00:05.2]} 49. Bb5 {[%clk 0:00:11.7]} 49... Kc5 {[%clk 0:00:04.1]} 50.
Bd7 {[%clk 0:00:08.5]} 50... Be5 {[%clk 0:00:03.2]} 51. Ke2 {[%clk 0:00:07.7]}
1-0

[Event "Early-Titled-Tuesday-Blitz-July-09-2024"]
[Site "Chess.com"]
[Date "2024.07.09"]
[Round "8"]
[White "manitodeplomo"]
[Black "Byniolus"]
[Result "0-1"]
[WhiteElo "2595"]
[BlackElo "2784"]
[TimeControl "180+1"]
[EndTime "9:30:13 PDT"]
[Termination "Byniolus won on time"]

1. d4 {[%clk 0:03:00.9]} 1... a6 {[%clk 0:03:00]} 2. e4 {[%clk 0:03:00.3]} 2...
d6 {[%clk 0:02:59.9]} 3. c4 {[%clk 0:02:50.4]} 3... e6 {[%clk 0:03:00.3]} 4. Nc3
{[%clk 0:02:50.4]} 4... g6 {[%clk 0:03:00.9]} 5. f4 {[%clk 0:02:49.3]} 5... h6
{[%clk 0:03:01.4]} 6. Nf3 {[%clk 0:02:49.5]} 6... c6 {[%clk 0:03:01.2]} 7. d5
{[%clk 0:02:43]} 7... Bg7 {[%clk 0:02:55.5]} 8. Be3 {[%clk 0:02:42.5]} 8... Ne7
{[%clk 0:02:54.5]} 9. Bd4 {[%clk 0:02:39.9]} 9... O-O {[%clk 0:02:52.6]} 10.
Bxg7 {[%clk 0:02:39.8]} 10... Kxg7 {[%clk 0:02:53.5]} 11. Qd4+ {[%clk
0:02:39.3]} 11... Kh7 {[%clk 0:02:49.2]} 12. O-O-O {[%clk 0:02:38.6]} 12... exd5
{[%clk 0:02:45.2]} 13. cxd5 {[%clk 0:02:36.3]} 13... cxd5 {[%clk 0:02:44.9]} 14.
exd5 {[%clk 0:02:29.3]} 14... Nd7 {[%clk 0:02:38.6]} 15. g4 {[%clk 0:02:16.9]}
15... Qb6 {[%clk 0:02:30.9]} 16. h3 {[%clk 0:02:05.4]} 16... Qxd4 {[%clk
0:02:28.6]} 17. Nxd4 {[%clk 0:02:04.4]} 17... Nf6 {[%clk 0:02:23.6]} 18. Bg2
{[%clk 0:02:02.8]} 18... Bd7 {[%clk 0:02:22.1]} 19. Rhe1 {[%clk 0:02:02.2]}
19... Rfe8 {[%clk 0:02:21.4]} 20. Re2 {[%clk 0:01:49.1]} 20... Kg7 {[%clk
0:02:19.8]} 21. Rde1 {[%clk 0:01:48.7]} 21... Kf8 {[%clk 0:02:19.4]} 22. Kd2
{[%clk 0:01:46.7]} 22... Rac8 {[%clk 0:02:18.1]} 23. a3 {[%clk 0:01:45.5]} 23...
Rc5 {[%clk 0:02:02.1]} 24. b4 {[%clk 0:01:42.6]} 24... Rc7 {[%clk 0:01:44.1]}
25. Bf3 {[%clk 0:01:07.5]} 25... Rc4 {[%clk 0:01:34.3]} 26. Kd3 {[%clk
0:01:00.9]} 26... Rec8 {[%clk 0:01:34.5]} 27. Rxe7 {[%clk 0:00:36.6]} 27...
Rxc3+ {[%clk 0:01:33.8]} 28. Kd2 {[%clk 0:00:36.7]} 28... Bb5 {[%clk 0:01:16.1]}
29. R1e3 {[%clk 0:00:20.6]} 29... Rxa3 {[%clk 0:00:20.1]} 30. Rxf7+ {[%clk
0:00:13.9]} 30... Kxf7 {[%clk 0:00:21]} 31. Rxa3 {[%clk 0:00:13.6]} 31... Bc4
{[%clk 0:00:19.7]} 32. Rc3 {[%clk 0:00:09]} 32... b5 {[%clk 0:00:20]} 33. Nc6
{[%clk 0:00:07.8]} 33... Re8 {[%clk 0:00:17.6]} 34. g5 {[%clk 0:00:05.2]} 34...
hxg5 {[%clk 0:00:15.2]} 35. fxg5 {[%clk 0:00:06.1]} 35... Nxd5 {[%clk 0:00:16]}
36. Rxc4 {[%clk 0:00:05.6]} 36... bxc4 {[%clk 0:00:10.8]} 37. Bxd5+ {[%clk
0:00:05.2]} 37... Kg7 {[%clk 0:00:11.7]} 38. Kc3 {[%clk 0:00:05.3]} 38... Re3+
{[%clk 0:00:09.9]} 39. Kxc4 {[%clk 0:00:05.7]} 39... Rxh3 {[%clk 0:00:10.8]} 40.
Nb8 {[%clk 0:00:05.9]} 40... Ra3 {[%clk 0:00:07.2]} 41. Bb7 {[%clk 0:00:04.4]}
41... a5 {[%clk 0:00:07.7]} 42. b5 {[%clk 0:00:03.6]} 42... Ra1 {[%clk
0:00:07.4]} 43. Nc6 {[%clk 0:00:01.4]} 43... a4 {[%clk 0:00:08.3]} 44. Kb4
{[%clk 0:00:01.2]} 44... a3 {[%clk 0:00:08.4]} 45. Kb3 {[%clk 0:00:01.8]} 45...
a2 {[%clk 0:00:06.8]} 46. Kb2 {[%clk 0:00:02]} 46... Rb1+ {[%clk 0:00:07.7]} 47.
Kxa2 {[%clk 0:00:02.4]} 47... Rxb5 {[%clk 0:00:08.6]} 48. Ba8 {[%clk 0:00:02]}
48... Rb6 {[%clk 0:00:06.6]} 49. Na5 {[%clk 0:00:01]} 49... Ra6 {[%clk
0:00:06.6]} 50. Kb3 {[%clk 0:00:01.9]} 50... Rxa5 {[%clk 0:00:05.5]} 0-1